Cogmind - Beta 15 @@@ ROGUE MODE // 2025.09.24 @ 21:48:07 Player: kiiro Result: Self-destructed Performance ------------- Evolutions (1) 500 Regions Visited (3) 600 Robots Destroyed (10) 50 Value Destroyed (143) 143 Prototype IDs (0) 0 Alien Tech Used (0) 0 Bonus (0) 0 TOTAL SCORE: 1293 Bonus ------- None Cogmind --------- Core Integrity 372/400 Matter 280/300 Energy 124/125 System Corruption 0% Temperature Cool (3) Movement Flying (34) Location -9/Materials Parts ------- > --- POWER (1) -------- Light Ion Engine > --- PROPULSION (4) --- Flight Unit Flight Unit Flight Unit > --- UTILITY (2) ------ ECM Suite > --- WEAPON (2) ------- Light Assault Rifle Light Assault Rifle > --- INVENTORY (5) ---- Compact Wheel Small Storage Unit Datajack Mining Laser Peak State ------------ > --- POWER ------------ Light Ion Engine > --- PROPULSION ------- Compact Wheel Compact Wheel > --- UTILITY ---------- Small Storage Unit ECM Suite > --- WEAPON ----------- Light Assault Rifle Light Assault Rifle > --- INVENTORY -------- Flight Unit Datajack Mining Laser [Rating: 7] Favorites ----------- Power Light Ion Engine Engine Light Ion Engine Propulsion Compact Wheel Wheel Compact Wheel Flight Unit Flight Unit Utility Small Storage Unit Device ECM Suite Storage Small Storage Unit Weapon Light Assault Rifle Ballistic Gun Light Assault Rifle Special Weapon Mining Laser Build | -11 -10 -10 -9 ------- Run | Yrd Mat Min Mat Slots Evolved 2 | . . . 2 Power . | . . . . Propulsion 2 | . . . 2 Utility . | . . . . Weapon . | . . . . Parts Attached 13 | 7 3 . 3 Power 2 | 1 1 . . Engine 2 | 1 1 . . Core . | . . . . Reactor . | . . . . Propulsion 5 | 2 . . 3 Treads . | . . . . Leg . | . . . . Wheel 2 | 2 . . . Hover . | . . . . Flight 3 | . . . 3 Utility 2 | 1 1 . . Device 1 | . 1 . . Storage 1 | 1 . . . Processor . | . . . . Hackware . | . . . . Protection . | . . . . Artifact . | . . . . Weapon 4 | 3 1 . . Energy Gun . | . . . . Energy Cannon . | . . . . Ballistic Gun 2 | 2 . . . Ballistic Cannon . | . . . . Launcher . | . . . . Special Weapon 2 | 1 1 . . Impact Weapon . | . . . . Slashing Weapon . | . . . . Piercing Weapon . | . . . . Special Melee Weapon . | . . . . Unidentified Prototypes . | . . . . Parts Lost 3 | . 1 2 . Power 1 | . 1 . . Propulsion 1 | . . 1 . Utility . | . . . . Weapon 1 | . . 1 . Highest Loss Streak 2 | . 1 2 . To Critical Strikes . | . . . . Average Backups 3 | 1 3 6 4 Power . | . . . . Propulsion 1 | . 1 3 1 Utility . | . . . . Weapon 1 | . 1 2 1 Tool/Special . | . . . . Unused Backups 1 | . . . 1 Power . | . . . . Propulsion . | . . . . Utility . | . . . . Weapon . | . . . . Tool/Special 1 | . . . 1 Average Slot Usage (%) 87 | . 92 100 68 Engine 13 | . 14 14 11 Wheel 21 | . 28 28 . Flight 7 | . . . 30 Device 8 | . 7 14 11 Storage 10 | . 14 14 . Ballistic Gun 13 | . 17 . 10 Special Weapon 11 | . 10 28 5 Peak Build Rating 7 | 6 7 7 7 Average Rating 6 | 5 6 7 6 On Entrance 4 | . 6 7 5 Naked Turns . | . . . . Heaviest Build 12 | 12 12 12 7 Greatest Support 32 | 32 32 32 12 Greatest Overweight (x) 1 | 1 . . . Average Overweight (x) . | . . . . Largest Inventory Capacity 8 | 8 8 8 8 Average Capacity 7 | 7 8 8 5 Most Carried 7 | 2 6 6 7 Average Carried 3 | 1 3 6 4 Final Capacity 8 | 8 8 8 5 Final Carried 6 | 2 6 6 4 Class Distribution -------------------- 100% | Mutant Dominant Class ---------------- Mutant | -10/Materials Mutant | -10/Mines Mutant | -9/Materials Resources | -11 -10 -10 -9 ----------- Run | Yrd Mat Min Mat Matter Collected 393 | 308 29 . 56 Remotely . | . . . . Salvage Created 316 | 167 93 . 56 Parts 19 | 11 4 . 4 Haulers Intercepted . | . . . . Recyclers Shooed 1 | . 1 . . Parts Field Recycled . | . . . . Retrieved Matter . | . . . . Parts Self-Destructed . | . . . . Prevented . | . . . . Kills | -11 -10 -10 -9 ------- Run | Yrd Mat Min Mat Combat Hostiles Destroyed 5 | . 4 . 1 Guns 5 | . 4 . 1 Classes Destroyed 5 | 2 2 . 1 Tunneler 4 | 4 . . . Recycler 1 | 1 . . . Swarmer 3 | . 3 . . Grunt 1 | . 1 . . Sentry 1 | . . . 1 Best Kill Streak 4 | 2 4 . 1 Combat Bots Only 4 | . 4 . 1 Max Kills in Single Turn 1 | 1 1 . 1 Gunslinging . | . . . . Exploded . | . . . . Melee . | . . . . Uniques/NPCs Destroyed . | . . . . Combat | -11 -10 -10 -9 -------- Run | Yrd Mat Min Mat Hostile Shots Fired 35 | . 23 6 6 Missed 6 | . 3 . 3 Hits 29 | . 20 6 3 Projectile 29 | . 20 6 3 Damage Taken 313 | . 188 85 40 Core 94 | . 36 30 28 Absorbed by Shields . | . . . . Core Remaining (%) 86 | 100 . 73 . Volleys Fired 44 | 19 22 . 3 Largest 2 | 2 1 . 2 Hottest 100 | 40 100 . 40 Shots Fired 66 | 38 22 . 6 Gun 58 | 38 14 . 6 Cannon . | . . . . Launcher . | . . . . Special 8 | . 8 . . Kinetic 58 | 38 14 . 6 Thermal 8 | . 8 . . Explosive . | . . . . Electromagnetic . | . . . . Robot Hit Streak 12 | 11 12 . 4 Robot Miss Streak 2 | 2 2 . 1 Penetration Max . | . . . . Secondary Targets . | . . . . Shots Hit Robots 42 | 26 11 . 5 Core Hits 18 | 10 5 . 3 Critical Kills 1 | . 1 . . Critical Parts Destroyed . | . . . . Critical Strikes 1 | . 1 . . Destroy 1 | . 1 . . Melee Attacks . | . . . . Impact . | . . . . Slashing . | . . . . Piercing . | . . . . Sneak Attacks . | . . . . Combat Hostiles . | . . . . Follow-up Attacks . | . . . . Damage Inflicted 355 | 215 104 . 36 Guns 355 | 215 104 . 36 Cannons . | . . . . Explosions . | . . . . Melee . | . . . . Ramming . | . . . . Kinetic 355 | 215 104 . 36 Thermal . | . . . . Explosive . | . . . . Electromagnetic . | . . . . Impact . | . . . . Slashing . | . . . . Piercing . | . . . . Highest Corruption . | . . . . Average Corruption . | . . . . Corruption Purged . | . . . . Corruption Blocked . | . . . . Overload Shots . | . . . . Overflow Damage . | . . . . Projectiles . | . . . . Explosions . | . . . . Melee . | . . . . Knockbacks . | . . . . Impact . | . . . . Kinetic . | . . . . Secondary . | . . . . Self-Inflicted Damage . | . . . . Shots . | . . . . Rammed . | . . . . Targets Rammed . | . . . . Kicked . | . . . . Crushed . | . . . . Highest Temperature 20 | . 20 . 9 Average Temperature 11 | . 12 . 9 Received Heat Transfer 93 | . 33 51 9 Siege Activations . | . . . . Martial Activations . | . . . . Shielding Activations . | . . . . Robots Disrupted . | . . . . Combat Hostiles . | . . . . Robots Corrupted . | . . . . Combat Hostiles . | . . . . Parts Fried . | . . . . Impact Corruptions . | . . . . Robots Melted . | . . . . Combat Hostiles . | . . . . Parts Melted . | . . . . Heat Transferred . | . . . . Parts Sabotaged . | . . . . Parts Stolen . | . . . . Parts Stripped . | . . . . Power Chain Reactions . | . . . . Alert | -11 -10 -10 -9 ------- Run | Yrd Mat Min Mat Maximum Alert Level . | . . . . Low Security (%) 100 | 100 100 100 100 Level 1 . | . . . . Level 2 . | . . . . Level 3 . | . . . . Level 4 . | . . . . Level 5 . | . . . . High Security . | . . . . Max Security . | . . . . Peak Influence 84 | 10 71 . 84 Initial . | . . . . Average 17 | 1 20 . 42 Influence Increases 256 | 25 97 . 134 Destroy 0b10 Robot/C 100 | . 80 . 20 Destroy 0b10 Robot/NC 25 | 25 . . . Destroy Leader 20 | . 10 . 10 Successful Hack 18 | . 4 . 14 Destroy Structure 3 | . 3 . . Partial Spotted 15 | . . . 15 Lose Combat Pursuer 75 | . . . 75 Influence Decreases 172 | 25 97 . 50 Time Decay 162 | 25 87 . 50 Lost Part 10 | . 10 . . Squads Dispatched . | . . . . Investigation . | . . . . Extermination . | . . . . Reinforcement . | . . . . Assault . | . . . . Garrison . | . . . . Intercept . | . . . . Searches Triggered . | . . . . Construction Impeded . | . . . . Haulers Reinforced . | . . . . Active Scanning Responses . | . . . . Cargo Convoy Interrupts . | . . . . Stealth | -11 -10 -10 -9 --------- Run | Yrd Mat Min Mat Distress Signals 2 | . . . 2 Communications Jammed . | . . . . Distress Signals . | . . . . Times Spotted 26 | . 11 5 10 Peak Tracking Total 4 | . 4 4 4 Tactical Retreats 5 | . 2 1 2 Traps | -11 -10 -10 -9 ------- Run | Yrd Mat Min Mat Traps Triggered . | . . . . Indirectly . | . . . . Trap Hack Attempts . | . . . . Triggered . | . . . . Disarmed . | . . . . Reprogrammed . | . . . . Reused . | . . . . Traps Extracted . | . . . . Installed . | . . . . Triggered . | . . . . Machines | -11 -10 -10 -9 ---------- Run | Yrd Mat Min Mat Machines Disabled . | . . . . Max in Single Turn . | . . . . Machines Repaired . | . . . . Machines Dismantled . | . . . . Machines Sabotaged . | . . . . Overloaded Fab Kills . | . . . . Hacking | -11 -10 -10 -9 --------- Run | Yrd Mat Min Mat Machines Accessed 5 | . 2 . 3 Terminals 4 | . 1 . 3 Fabricators . | . . . . Repair Stations . | . . . . Recycling Units 1 | . 1 . . Scanalyzers . | . . . . Garrison Access . | . . . . Total Hacks 11 | . 5 . 6 Successful 6 | . 3 . 3 Failed 5 | . 2 . 3 Catastrophic . | . . . . Database Lockouts . | . . . . Manual 4 | . 2 . 2 Terminals 10 | . 4 . 6 Fabricators . | . . . . Repair Stations . | . . . . Recycling Units 1 | . 1 . . Scanalyzers . | . . . . Garrison Access . | . . . . Terminal Hacks 5 | . 2 . 3 Robot Analysis 1 | . . . 1 Locate Traps 1 | . 1 . . Maintenance Status 1 | . . . 1 Surveillance Status 1 | . . . 1 Zone Layout 1 | . 1 . . Fabricator Hacks . | . . . . Repair Station Hacks . | . . . . Recycling Unit Hacks 1 | . 1 . . Retrieve Components 1 | . 1 . . Scanalyzer . | . . . . Garrison Access Hacks . | . . . . Unauthorized Hacks . | . . . . Terminals . | . . . . Fabricators . | . . . . Repair Stations . | . . . . Recycling Units . | . . . . Scanalyzers . | . . . . Garrison Access . | . . . . Data Cores Recovered . | . . . . Used . | . . . . Hacking Detections 4 | . 1 . 3 Full Trace Events . | . . . . Feedback Events . | . . . . Feedback Blocked . | . . . . Robot Schematics Acquired . | . . . . Robots Built . | . . . . Authchips . | . . . . Time . | . . . . Total Robot Build Rating . | . . . . Part Schematics Acquired . | . . . . Parts Built . | . . . . Authchips . | . . . . Time . | . . . . Total Part Build Rating . | . . . . Parts Repaired . | . . . . Time . | . . . . Parts Recycled . | . . . . Recycled Matter . | . . . . Retrieved Matter . | . . . . Retrieved Components 3 | . 3 . . Parts Scanalyzed . | . . . . Part Schematics Acquired . | . . . . Parts Damaged . | . . . . Bothacking | -11 -10 -10 -9 ------------ Run | Yrd Mat Min Mat Used RIF Installer . | . . . . Robots Hacked . | . . . . Non-combat . | . . . . Combat . | . . . . Robot Hacks Applied . | . . . . Relay Couplers Released . | . . . . Fabnet Peak Effective % . | . . . . Robots Rewired . | . . . . Allies Hacked . | . . . . Hacks Repelled . | . . . . Allies | -11 -10 -10 -9 -------- Run | Yrd Mat Min Mat Total Allies . | . . . . Largest Group . | . . . . Highest-Rated Group . | . . . . Highest-Rated Ally . | . . . . Total Orders . | . . . . Ally Attacks . | . . . . Total Damage . | . . . . Kills . | . . . . Allies Corrupted . | . . . . Allies Melted . | . . . . Intel | -11 -10 -10 -9 ------- Run | Yrd Mat Min Mat Active Infowar (turns) 213 | . 154 55 4 ECM 213 | . 154 55 4 Robot Analysis Total 1 | . . . 1 Derelict Logs Recovered . | . . . . Drone Launches . | . . . . Drone Recoveries . | . . . . Exploration | -11 -10 -10 -9 ------------- Run | Yrd Mat Min Mat Turns Passed 620 | 161 298 55 106 Spaces Moved 525 | 103 203 51 168 Core 7 | 7 . . . Treads . | . . . . Legs . | . . . . Wheels 350 | 96 203 51 . Hover . | . . . . Flight 168 | . . . 168 Fastest Speed 34 | 50 100 100 34 Average Speed 78 | 97 100 100 34 Slowest Speed 100 | 100 100 100 34 Overloaded Moves . | . . . . Propulsion Burnouts . | . . . . Robots Hopped . | . . . . Potential Cave-ins 7 | . 7 . . Cave-ins Triggered . | . . . . Exploration Rate (%) 22 | 5 39 26 19 Regions Visited 3 Branch Regions 1 Pre-discovered Areas . | . . . . Known Exits Taken . | . . . . Unknown Exits Taken 3 | 1 1 1 . Scrap Searched . | . . . . Spaces Dug 8 | . 8 . . Terrain Destroyed 8 | . 8 . . Melee . | . . . . Projectile 8 | . 8 . . AOE . | . . . . Terrain Rammed . | . . . . Walls Destroyed . | . . . . Machines Disabled . | . . . . Actions | -11 -10 -10 -9 --------- Run | Yrd Mat Min Mat Total 657 | 130 260 55 212 Wait 65 | . 26 5 34 Move 522 | 102 202 50 168 Hop . | . . . . Pick Up 6 | 1 5 . . Fast Attach 8 | 7 1 . . Attach 5 | . 1 . 4 Detach 3 | 1 . . 2 Swap 4 | . 3 . 1 Drop . | . . . . Fire 44 | 19 22 . 3 Melee . | . . . . Ram . | . . . . Kick . | . . . . Crush . | . . . . Escape Stasis . | . . . . Rewire . | . . . . Trap . | . . . . Miscellaneous . | . . . . Route ------- -11/Scrapyard -10/Materials (discovered 2 exits: Mat / [*Min]) -10/Mines -9/Materials History --------- Turn | Location | Event 29 | -11/Scrapyard | Discovered new exit (range 15) 162 | -11/Scrapyard | Entered Materials 320 | -10/Materials | Discovered new exit (range 15) 327 | -10/Materials | Build established: Mutant 340 | -10/Materials | Discovered new exit (range 10) 460 | -10/Materials | Entered Mines 513 | -10/Mines | Discovered new exit (range 3) 515 | -10/Mines | Entered Materials 515 | -9/Materials | Evolved 2 slots: Propulsion x2 621 | -9/Materials | Self-destructed Last Messages --------------- 00580_ K-01 Serf collects debris. 00580_ Acquired 56 matter. 00584_ K-01 Serf collects debris. 00597_ Connecting with Terminal... >>Enumerate(Surveillance) Retrieving latest reported positions... Found 5 active surveillance squads. Downloaded coordinate data. >>Enumerate(Maintenance) Found 28 registered maintenance bots. 13 Workers 8 Builders 4 Tunnelers 2 Recyclers 1 Mechanic Downloaded coordinate data. 00603_ K-01 Serf collects debris. 00613_ Connecting with Terminal... 00614_ K-01 Serf cleans the Terminal. 00621_ Connecting with Terminal... Map ----- +----------------------------------------------------+ | ?????????????????????????????????????????????????? | | ?????????????????????????????????????????????????? | | ?????????????????????????????????????????????????? | | ?????????????????????????????????????????????????? | | ?????????????????????????????????????????????????? | | ????????????????????????? ?????????????????????? | | ??????????????????????? ?????????????????????? | | ?????????????????????? ?????????????????????? | | ??????????????????????# ?????????????????????? | | ??????????????????????# ?????????????????????? | | ??????????????????????# ?????????????????????? | | ??????????????????????# #????????????????????? | | ??????????????????????# #????????????????????? | | ??????????????????????# #????????????????????? | | ??????????????????????# #????????????????????? | | ????????????????????# #????????????????????? | | ????????????????????# #????????????????????? | | ????????????????????# #????????????????????? | | ????????????????????# #????????????????????? | | #???????????????????# #????????????????????? | | #??????????????????## #####????????????????? | | ########/########??# !##???????????????? | | = """ # #??# !#???????????????? | | "T" # """" #### " !#???????????????? | | # """" + "Tk !#???????????????? | | " + """" #### @ !#???????????????? | | " # #??# !##???????????????? | | " # #??# ####????????????????? | | # #??### ###???????????????????? | | # #????# #?????????????????????? | | #######+###????# #?????????????????????? | | #??????????????# #?????????????????????? | | ########??????????????#u #?????????????????????? | | ##????????????????????|[ #?????????????????????? | | #??????????????????? |[ #?????????????????????? | | #????????????????? #?????????????????????? | | #?????????????? [[[ #?????????????????????? | | #????????????? [[ #?????????????????????? | | #????????????# [[ ?????????????????????? | | #?######?????? = ?????????????????????? | | #? #?????? ?????????????????????? | | # """ #??????? #######+#?????????????????????? | | # """ #??????? ??????????????????????????????? | | + """ #??????? ???????????????????????????????? | | # #??????? ???????????????????????????????? | | # [ [#######? ???????????????????????????????? | | ######## #? ???????????????????????????????? | | ## # #?# #???????????????????????????????? | | ?# # #?# #???????????????????????????????? | | ?# # #?# #???????????????????????????????? | +----------------------------------------------------+ Best States ------------- Heat Dissipation 28 Energy Generation 10 Energy Capacity 250 Matter Stores 300 Matter Capacity 300 Sight Range 16 Terrain Scan Density 10 ECM Strength 1 Evasion (%) 63 Item Schematics ----------------- None Robot Schematics ------------------ None Fabricated ------------ Nothing Repaired ---------- Nothing Alien Tech Used ----------------- None Achievements -------------- None Challenges ------------ None Game ------ Seed DamperLegChainsaw Manual? 0 Play Time 00:10:36 Cumulative 20.7 hours Start 2025.09.10 @ 13:18:18 End 2025.09.24 @ 21:48:07 Sessions 2 Manual Loads 0 Difficulty Rogue Special Mode None Game No. 22 Rogue 22 Adventurer 0 Explorer 0 Win Type - Total 0 Types 0/0/0/0/0/0/0/0/0/0 Lore% 4 Gallery% 17 Achievement% 17 Wizard Run 0 Options --------- Layout 0 ASCII 1 Keyboard 1 Movement Vi Keybinds 0 Fullscreen 2 Font 24/Smallcaps Map View 76x50 Zoom Use 0% Tactical HUD 1 Map Filters NONE Filters NONE Steam 1 RUN: 9bdcbab1-c032-4d67-b5e1-e479204e00c4